Cogmind - Beta 15 @@@ ROGUE MODE // 2025.07.13 @ 20:06:07 Player: Suffixing Result: Destroyed by S-10 Pest with Light Assault Rifle Performance ------------- Evolutions (0) 0 Regions Visited (2) 400 Robots Destroyed (35) 175 Value Destroyed (991) 991 Prototype IDs (0) 0 Alien Tech Used (0) 0 Bonus (0) 0 TOTAL SCORE: 1566 Bonus ------- None Cogmind --------- Core Integrity 0/250 Matter 250/300 Energy 200/200 System Corruption 2% Temperature Cool (0) Movement Treading (240) Ox1 Location -10/Subcaves Parts ------- > --- POWER (1) -------- Subdweller Power Source > --- PROPULSION (2) --- Light Treads Light Treads > --- UTILITY (2) ------ Improved Heat Sink Large Storage Unit > --- WEAPON (2) ------- Subdweller Beam Cannon Subdweller Shrapnel Launcher > --- INVENTORY (15) --- Light Treads Light Treads Light Treads Subdweller Monowheel Flight Unit Flight Unit Structural Scanner Subdweller Optics Hacking Suite Subdweller Machine Gun Subdweller Machine Gun Battle Cannon Battle Cannon Grenade Launcher Datajack Peak State ------------ > --- POWER ------------ Subdweller Power Source > --- PROPULSION ------- Light Treads Light Treads > --- UTILITY ---------- Improved Heat Sink Large Storage Unit > --- WEAPON ----------- Subdweller Machine Gun Subdweller Machine Gun > --- INVENTORY -------- Light Treads Light Treads Light Treads Light Treads Light Treads Light Treads Subdweller Monowheel Flight Unit Flight Unit Structural Scanner Subdweller Optics Hacking Suite Particle Gun Grenade Launcher Datajack [Rating: 14] Favorites ----------- Power Ion Engine Engine Ion Engine Propulsion Light Treads Treads Light Treads Leg Aluminum Leg Utility Large Storage Unit Device Improved Heat Sink Storage Large Storage Unit Weapon Assault Rifle Energy Gun Particle Gun Energy Cannon Subdweller Beam Cannon Ballistic Gun Assault Rifle Launcher Grenade Launcher Build | -11 -10 -10 ------- Run | Yrd Mat Sub Slots Evolved . | . . . Power . | . . . Propulsion . | . . . Utility . | . . . Weapon . | . . . Parts Attached 17 | 2 6 9 Power 3 | . . 3 Engine 3 | . . 3 Core . | . . . Reactor . | . . . Propulsion 5 | 2 1 2 Treads 5 | 2 1 2 Leg . | . . . Wheel . | . . . Hover . | . . . Flight . | . . . Utility 2 | . 2 . Device 1 | . 1 . Storage 1 | . 1 . Processor . | . . . Hackware . | . . . Protection . | . . . Artifact . | . . . Weapon 7 | . 3 4 Energy Gun 1 | . 1 . Energy Cannon 1 | . . 1 Ballistic Gun 3 | . 1 2 Ballistic Cannon . | . . . Launcher 2 | . 1 1 Special Weapon . | . . . Impact Weapon . | . . . Slashing Weapon . | . . . Piercing Weapon . | . . . Special Melee Weapon . | . . . Unidentified Prototypes . | . . . Corrupted Parts 1 | . 1 . System Corruption 2 | . 2 . Parts Lost 5 | . 2 3 Power 2 | . . 2 Propulsion 1 | . 1 . Utility . | . . . Weapon 2 | . 1 1 Highest Loss Streak 2 | . 1 2 To Critical Strikes 1 | . . 1 Average Backups 11 | 3 8 14 Power . | 1 1 . Propulsion 4 | 2 2 6 Utility 2 | . 2 3 Weapon 2 | . 1 3 Tool/Special . | . . . Unused Backups 20 | . 5 15 Power 2 | . 1 1 Propulsion 7 | . . 7 Utility 6 | . 2 4 Weapon 4 | . 2 2 Tool/Special 1 | . . 1 Average Slot Usage (%) 95 | . 96 94 Engine 12 | . 14 11 Treads 27 | . 27 28 Device 12 | . 10 14 Storage 14 | . 14 14 Energy Gun 9 | . 17 1 Energy Cannon 3 | . . 7 Ballistic Gun 11 | . 10 12 Launcher 1 | . . 3 Peak Build Rating 14 | 6 11 14 Average Rating 10 | 6 9 12 On Entrance 7 | 6 6 11 Naked Turns . | . . . Heaviest Build 38 | 14 31 38 Greatest Support 40 | 40 40 40 Greatest Overweight (x) . | . . . Average Overweight (x) . | . . . Largest Inventory Capacity 15 | 8 15 15 Average Capacity 14 | 8 14 15 Most Carried 15 | 5 14 15 Average Carried 11 | 2 8 14 Final Capacity 15 | 8 15 15 Final Carried 15 | 1 14 15 Class Distribution -------------------- 94% | Mutant 5% | Scavenger-Mutant Dominant Class ---------------- Mutant | -10/Materials Mutant | -10/Subcaves Resources | -11 -10 -10 ----------- Run | Yrd Mat Sub Matter Collected 752 | 220 208 324 Remotely . | . . . Salvage Created 1091 | . 744 347 Parts 73 | . 46 27 Haulers Intercepted 2 | . 2 . Recyclers Shooed 1 | . 1 . Parts Field Recycled . | . . . Retrieved Matter . | . . . Parts Self-Destructed 2 | . . 2 Prevented . | . . . Kills | -11 -10 -10 ------- Run | Yrd Mat Sub Combat Hostiles Destroyed 26 | . 14 12 Guns 9 | . 8 1 Cannons 2 | . . 2 AOE 14 | . 6 8 Classes Destroyed 8 | . 7 1 Builder 2 | . 2 . Hauler 2 | . 2 . Recycler 1 | . 1 . Mechanic 1 | . 1 . Operator 3 | . 3 . Swarmer 4 | . 3 1 Grunt 11 | . 11 . Subdweller 11 | . . 11 Best Kill Streak 6 | . 6 2 Combat Bots Only 6 | . 6 2 Max Kills in Single Turn 3 | . 3 1 Gunslinging . | . . . Exploded 3 | . 3 1 Melee . | . . . Uniques/NPCs Destroyed . | . . . Combat | -11 -10 -10 -------- Run | Yrd Mat Sub Hostile Shots Fired 93 | . 54 39 Missed 29 | . 17 12 Hits 64 | . 37 27 Projectile 64 | . 37 27 Critical Strikes 3 | . 1 2 Damage Taken 1106 | . 490 616 Core 255 | . 61 194 Absorbed by Shields . | . . . Core Remaining (%) 100 | 100 . . Volleys Fired 94 | . 59 35 Largest 2 | . 2 2 Hottest 110 | . 85 110 Shots Fired 166 | . 117 49 Gun 134 | . 116 18 Cannon 11 | . . 11 Launcher 21 | . 1 20 Special . | . . . Kinetic 63 | . 43 20 Thermal 47 | . 36 11 Explosive 19 | . 1 18 Electromagnetic 37 | . 37 . Robot Hit Streak 9 | . 9 4 Robot Miss Streak 4 | . 4 3 Penetration Max . | . . . Secondary Targets . | . . . Shots Hit Robots 83 | . 66 17 Core Hits 52 | . 36 16 Critical Kills 1 | . . 1 Critical Parts Destroyed . | . . . Critical Strikes 2 | . 1 1 Burn 1 | . 1 . Meltdown 1 | . . 1 Melee Attacks . | . . . Impact . | . . . Slashing . | . . . Piercing . | . . . Sneak Attacks . | . . . Combat Hostiles . | . . . Follow-up Attacks . | . . . Damage Inflicted 2268 | . 1276 992 Guns 1057 | . 905 152 Cannons 136 | . . 136 Explosions 1054 | . 350 704 Melee . | . . . Ramming 21 | . 21 . Kinetic 570 | . 261 309 Thermal 658 | . 522 136 Explosive 682 | . 135 547 Electromagnetic 337 | . 337 . Impact . | . . . Slashing . | . . . Piercing . | . . . Highest Corruption 2 | . 2 2 Average Corruption 2 | . 2 2 Corruption Purged . | . . . Corruption Blocked . | . . . Effects 30 | . 18 12 Message Errors 14 | . 8 6 Matter Fused 4 | . 2 2 Heat Flow Errors 6 | . 5 1 Energy Discharges 3 | . . 3 Misfires 2 | . 2 . Weapon Failures 1 | . 1 . Overload Shots . | . . . Overflow Damage 30 | . . 30 Projectiles . | . . . Explosions 30 | . . 30 Melee . | . . . Knockbacks 1 | . 1 . Impact 1 | . 1 . Kinetic . | . . . Secondary . | . . . Self-Inflicted Damage 125 | . 69 56 Shots 5 | . 2 3 Rammed 5 | . 5 . Targets Rammed 5 | . 5 . Kicked . | . . . Crushed . | . . . Highest Temperature 249 | . 249 173 Average Temperature 112 | . 112 94 Received Heat Transfer 243 | . 213 30 Siege Activations . | . . . Martial Activations . | . . . Shielding Activations . | . . . Robots Disrupted . | . . . Combat Hostiles . | . . . Robots Corrupted . | . . . Combat Hostiles . | . . . Parts Fried . | . . . Impact Corruptions . | . . . Robots Melted 1 | . . 1 Combat Hostiles 1 | . . 1 Parts Melted 3 | . 1 2 Heat Transferred 1299 | . 1114 185 Parts Sabotaged . | . . . Parts Stolen . | . . . Parts Stripped . | . . . Power Chain Reactions 3 | . 3 . Alert | -11 -10 -10 ------- Run | Yrd Mat Sub Maximum Alert Level . | . . . Low Security (%) 100 | 100 100 . Level 1 . | . . . Level 2 . | . . . Level 3 . | . . . Level 4 . | . . . Level 5 . | . . . High Security . | . . . Max Security . | . . . Peak Influence 196 | . 196 . Initial . | . . . Average 84 | . 85 . Influence Increases 492 | . 457 35 Destroy 0b10 Robot/C 300 | . 280 20 Destroy 0b10 Robot/NC 45 | . 45 . Destroy Leader 54 | . 54 . Successful Hack 16 | . 16 . Disable Machine 45 | . 45 . Destroy Structure 17 | . 17 . Lose Combat Pursuer 15 | . . 15 Influence Decreases 457 | . 457 . Time Decay 437 | . 437 . Lost Part 20 | . 20 . Squads Dispatched 2 | . 2 . Investigation . | . . . Extermination . | . . . Reinforcement 2 | . 2 . Assault . | . . . Garrison . | . . . Intercept . | . . . Searches Triggered . | . . . Construction Impeded . | . . . Haulers Reinforced . | . . . Active Scanning Responses . | . . . Cargo Convoy Interrupts . | . . . Stealth | -11 -10 -10 --------- Run | Yrd Mat Sub Distress Signals 1 | . 1 . Communications Jammed . | . . . Distress Signals . | . . . Times Spotted 45 | . 32 13 Peak Tracking Total 5 | . 5 2 Tactical Retreats 1 | . . 1 Traps | -11 -10 -10 ------- Run | Yrd Mat Sub Traps Triggered . | . . . Indirectly . | . . . Trap Hack Attempts . | . . . Triggered . | . . . Disarmed . | . . . Reprogrammed . | . . . Reused . | . . . Traps Extracted . | . . . Installed . | . . . Triggered . | . . . Machines | -11 -10 -10 ---------- Run | Yrd Mat Sub Machines Disabled 6 | . 3 3 Max in Single Turn 3 | . 1 3 Machines Repaired . | . . . Machines Dismantled . | . . . Machines Sabotaged . | . . . Overloaded Fab Kills . | . . . Hacking | -11 -10 -10 --------- Run | Yrd Mat Sub Machines Accessed 5 | . 5 . Terminals 5 | . 5 . Fabricators . | . . . Repair Stations . | . . . Recycling Units . | . . . Scanalyzers . | . . . Garrison Access . | . . . Total Hacks 12 | . 12 . Successful 8 | . 8 . Failed 4 | . 4 . Catastrophic . | . . . Database Lockouts . | . . . Manual 10 | . 10 . Terminals 12 | . 12 . Fabricators . | . . . Repair Stations . | . . . Recycling Units . | . . . Scanalyzers . | . . . Garrison Access . | . . . Terminal Hacks 1 | . 1 . Locate Traps 1 | . 1 . Fabricator Hacks . | . . . Repair Station Hacks . | . . . Recycling Unit Hacks . | . . . Scanalyzer . | . . . Garrison Access Hacks . | . . . Unauthorized Hacks 7 | . 7 . Terminals 7 | . 7 . Assimilate 2 | . 2 . Operators 2 | . 2 . Skim 3 | . 3 . Fabricators . | . . . Repair Stations . | . . . Recycling Units . | . . . Scanalyzers . | . . . Garrison Access . | . . . Data Cores Recovered 1 | . 1 . Used 1 | . 1 . Hacking Detections 2 | . 2 . Full Trace Events . | . . . Feedback Events . | . . . Feedback Blocked . | . . . Robot Schematics Acquired . | . . . Robots Built . | . . . Authchips . | . . . Time . | . . . Total Robot Build Rating . | . . . Part Schematics Acquired . | . . . Parts Built . | . . . Authchips . | . . . Time . | . . . Total Part Build Rating . | . . . Parts Repaired . | . . . Time . | . . . Parts Recycled . | . . . Recycled Matter . | . . . Retrieved Matter . | . . . Retrieved Components . | . . . Parts Scanalyzed . | . . . Part Schematics Acquired . | . . . Parts Damaged . | . . . Bothacking | -11 -10 -10 ------------ Run | Yrd Mat Sub Used RIF Installer . | . . . Robots Hacked . | . . . Non-combat . | . . . Combat . | . . . Robot Hacks Applied . | . . . Relay Couplers Released . | . . . Fabnet Peak Effective % . | . . . Robots Rewired . | . . . Allies Hacked . | . . . Hacks Repelled . | . . . Allies | -11 -10 -10 -------- Run | Yrd Mat Sub Total Allies . | . . . Largest Group . | . . . Highest-Rated Group . | . . . Highest-Rated Ally . | . . . Total Orders . | . . . Ally Attacks . | . . . Total Damage . | . . . Kills . | . . . Allies Corrupted . | . . . Allies Melted . | . . . Intel | -11 -10 -10 ------- Run | Yrd Mat Sub Active Infowar (turns) . | . . . Robot Analysis Total . | . . . Derelict Logs Recovered 1 | . . 1 Drone Launches . | . . . Drone Recoveries . | . . . Exploration | -11 -10 -10 ------------- Run | Yrd Mat Sub Turns Passed 2853 | 12 1410 1431 Spaces Moved 1536 | 5 744 787 Core . | . . . Treads 1536 | 5 744 787 Legs . | . . . Wheels . | . . . Hover . | . . . Flight . | . . . Fastest Speed 160 | 160 160 160 Average Speed 160 | 160 160 160 Slowest Speed 160 | 160 160 160 Overloaded Moves . | . . . Propulsion Burnouts . | . . . Robots Hopped . | . . . Potential Cave-ins . | . . . Cave-ins Triggered . | . . . Exploration Rate (%) 47 | 2 96 45 Regions Visited 2 Branch Regions 1 Pre-discovered Areas 1 | . . 1 Known Exits Taken . | . . . Unknown Exits Taken 2 | 1 1 . Scrap Searched 4 | . . 4 Spaces Dug 6 | . . 6 Terrain Destroyed 119 | . 13 106 Melee . | . . . Projectile . | . . . AOE 119 | . 13 106 Terrain Rammed . | . . . Walls Destroyed . | . . . Machines Disabled . | . . . Actions | -11 -10 -10 --------- Run | Yrd Mat Sub Total 1764 | 11 844 909 Wait 71 | . 10 61 Move 1534 | 4 743 787 Hop . | . . . Pick Up 26 | . 18 8 Fast Attach 3 | . . 3 Attach 5 | . 3 2 Detach . | . . . Swap 12 | 2 4 6 Drop 14 | 5 2 7 Fire 94 | . 59 35 Melee . | . . . Ram . | . . . Kick . | . . . Crush 5 | . 5 . Escape Stasis . | . . . Rewire . | . . . Trap . | . . . Miscellaneous . | . . . Route ------- -11/Scrapyard -10/Materials (discovered 5 exits: [*Mat x3] / [*Min] / [*Sub]) -10/Subcaves History --------- Turn | Location | Event 7 | -11/Scrapyard | Discovered new exit (range 3) 13 | -11/Scrapyard | Entered Materials 187 | -10/Materials | Discovered new exit (range 3) 305 | -10/Materials | Build established: Mutant 519 | -10/Materials | Discovered new exit (range 16) 761 | -10/Materials | Discovered new exit (range 16) 1236 | -10/Materials | Discovered new exit (range 4) 1412 | -10/Materials | Discovered new exit (range 8) 1423 | -10/Materials | Entered Subcaves 1424 | -10/Subcaves | Approached by a straggling Scientist 1519 | -10/Subcaves | Learned location of Zion (-6) 1605 | -10/Subcaves | Core integrity fell below 50% 1690 | -10/Subcaves | Ambushed by Subdweller buried in earth 1981 | -10/Subcaves | Core integrity fell below 20% 2854 | -10/Subcaves | Destroyed by S-10 Pest with Light Assault Rifle Last Messages --------------- powers down. 02526_ Subatomizers dissect the Sub. Power Source. 02544_ Dropped Broken Sub. Power Source. 02546_ Acquired Sub. Power Source. 02551_ Subatomizers dissect the Sub. Power Source. 02671_ 6 ,CW/LB0TW5QHBG#LHQKJB 02716_ GW/JTM2Q9T5G,#WSV=LIFZE&5M 02748_ Acquired 6 matter. 02795_ OC-76D(R): "SUBMAD!" 02797_ System corrupted: Heat flow error (+227). 02810_ OC-76D(R) suffers critical hit (Meltdown). 02810_ Scrap Shield melted. 02810_ Sub. Power Source melted. 02816_ Acquired 14 matter. 02851_ Machine disabled. 02853_ Destroyed Flight Unit. 02853_ S-10 Pest destroyed. Map ----- +----------------------------------------------------+ | ?? ???### ### ##??????????????????????? | | ?? !###?## ###???????????????????????? | | ?? ## ######????????????????????? | | ?# ##???????????????????? | | ?# #???????????????????? | | ? ## #???????????????????? | | ?? ##### ###?# % ??????????????????? | | ????????# ##??# ?? ???????????????????? | | ????????# ###""??????????????????????? | | ????????# "" ?????????????????????? | | ????????# #### " #???????????????????? | | ????????## #### ""#####???????????????????? | | ?????????## " #???????????????????????? | | ??????????## ""###???????????????????????? | | ???????????## ##%= "#####??????????????????????? | | ????????????##### #### #??????????????????????? | | ????????????????# ####" #??????????????????????? | | ????????????????# ### ##?????????????????????? | | ???????????????## " ""##????????????????????? | | ???????????????# " """ ##???????????????????? | | ???????????????# " "" " ##??????????????????? | | ???????????????####" "##" #??????????????????? | | ??????????????????##""## ###??????????????????? | | ???????????????????## ## ! #????????????????????? | | ????????????????????### ##????????????????????? | | ??????????????????????# @##?????????????????????? | | ??????????????????????# = #??????????????????????? | | ?????????????????????#;! ;??????????????????????? | | ???????????????????? &s #??????????????????????? | | ?????????????????? * ??????????????????????? | | ?????????????????t % =??????????????????????? | | ??????????????? * ??????????????????????? | | ??????????????; ; ]% ??????????????????????? | | ?????????????#; ; ! ?????????????????????? | | ?????????????#;;;; # ?????????????????????? | | ??????????????####;;# ;; ?????????????????????? | | ????????????????? # ? ### ?????????????????????? | | ???????????????? %? #??? ????????????????????? | | ???????????????????? ???? ????????????????????? | | ????????????????????? ???? ????????????????????? | | ?????????????????????????? ????????????????????? | | ?????????????????????????? ?????????????????????? | | ?????????????????????????????????????????????????? | | ?????????????????????????????????????????????????? | | ?????????????????????????????????????????????????? | | ?????????????????????????????????????????????????? | | ?????????????????????????????????????????????????? | | ?????????????????????????????????????????????????? | | ?????????????????????????????????????????????????? | | ?????????????????????????????????????????????????? | +----------------------------------------------------+ Best States ------------- Heat Dissipation 39 Energy Generation 15 Energy Capacity 250 Matter Stores 300 Matter Capacity 300 Sight Range 16 Terrain Scan Density 10 Evasion (%) 40 Recoil Reduction 2 Item Schematics ----------------- None Robot Schematics ------------------ None Fabricated ------------ Nothing Repaired ---------- Nothing Alien Tech Used ----------------- None Achievements -------------- None Challenges ------------ None Game ------ Seed SegregatorCompositeStorm Manual? 0 Play Time 00:14:58 Cumulative 45.4 hours Start 2025.07.13 @ 19:53:30 End 2025.07.13 @ 20:06:07 Sessions 1 Manual Loads 0 Difficulty Rogue Special Mode None Game No. 176 Rogue 132 Adventurer 44 Explorer 0 Win Type - Total 1 Types 1/0/0/0/0/0/0/0/0/0 Lore% 57 Gallery% 39 Achievement% 40 Wizard Run 0 Options --------- Layout 1 ASCII 0 Keyboard 0 Movement Mouse Keybinds 0 Fullscreen 1 Font 24/Smallcaps Map View 50x35 Zoom Use 0% Tactical HUD 1 Map Filters NONE Filters NONE Steam 1 RUN: eb9675a6-bbf9-45c4-83c1-0ec59a7dbd72